fUSD/lending_fUSD_20240226
["ID","MTS","AMOUNT","RATE_DAILY","PERIOD"]
[315178738,1708905603819,10000.0,0.000267,120]
[315178739,1708905609756,10000.0,0.000267,120]
[315178740,1708905622170,6622.13,0.000267,120]
[315178761,1708905870571,740.08,0.00019064,2]
[315178762,1708905892830,151.0,0.00026436,120]
[315178763,1708906145109,-2156.43811281,0.00019843,2]
[315178764,1708906145129,-656.85553193,0.00019844,2]
[315178765,1708906145150,-156.98626865,0.000199,2]
[315178766,1708906145171,-150.0,0.00019999,2]
[315178767,1708906145193,-16635.8990621,0.0002,2]
[315178768,1708906145213,-300.0,0.0002,2]
[315178769,1708906145233,-328.0,0.00020654,2]
[315178770,1708906145256,-250.0,0.00020727,2]
[315178771,1708906145277,-166.19,0.00020982,2]
[315178772,1708906145298,-2000.0,0.00020982,2]
[315178773,1708906145317,-672.0,0.00020998,2]
[315178774,1708906145335,-200.0,0.00021004,2]
[315178775,1708906145359,-1550.97572451,0.00021004,2]
[315178779,1708906172118,-179.78058049,0.00019999,2]
[315178784,1708906221642,151.0,0.00026461,120]
[315178803,1708906231570,-120.21941951,0.00019999,2]
[315178805,1708906231579,-205.0,0.0002005,2]
[315178808,1708906231589,-171.35427549,0.00021004,2]
[315178810,1708906231598,-275.5574707,0.0002105,2]
[315178814,1708906231683,-1781.23840423,0.0002105,2]
[315178815,1708906231694,-1095.12298293,0.0002105,2]
[315178816,1708906231705,-1881.901626,0.0002105,2]
[315178817,1708906231717,-326.43046132,0.0002105,2]
[315178818,1708906231742,-260.35426176,0.0002105,2]
[315178819,1708906231754,-637.73138218,0.0002105,2]
[315178820,1708906231798,-944.65341088,0.0002105,2]
[315178821,1708906231807,-5201.57,0.0002105,2]
[315178822,1708906231817,-160.38,0.0002112,2]
[315178823,1708906231825,-160.38,0.00021211,2]
[315178824,1708906231835,-176.55,0.00021239,2]
[315178825,1708906231844,-2156.43811281,0.00021302,2]
[315178826,1708906231853,-160.38,0.00021303,2]
[315178827,1708906231862,-740.08,0.00021328,2]
[315178828,1708906231871,-160.38,0.00021395,2]
[315178829,1708906231880,-160.38,0.00021487,2]
[315178830,1708906231889,-160.38,0.00021578,2]
[315178831,1708906231898,-160.38,0.0002167,2]
[315178832,1708906231907,-160.38,0.00021762,2]
[315178833,1708906231916,-414.0,0.00021777,2]
[315178834,1708906231926,-2500.0,0.00021806,2]
[315178836,1708906231935,-1000.0,0.00021817,2]
[315178837,1708906231944,-499.99,0.00021848,2]
[315178838,1708906231952,-160.38,0.00021853,2]
[315178839,1708906231962,-750.0,0.000219,2]
[315178841,1708906231971,-1942.11271257,0.00021906,2]
[315178842,1708906231982,-155464.68798743,0.00021906,2]
[315178843,1708906231991,-441.0011,0.00021906,2]
[315178844,1708906232000,-151.68,0.00021918,2]
[315178845,1708906232009,-153.93,0.00021918,2]
[315178846,1708906232018,-160.38,0.00021945,2]
[315178847,1708906232027,-210.0,0.00021999,2]
[315178848,1708906232036,-500.0,0.00022005,2]
[315178849,1708906232046,-500.0,0.00022005,2]
[315178850,1708906232055,-500.0,0.00022005,2]
[315178851,1708906232063,-500.0,0.00022005,2]
[315178852,1708906232072,-500.0,0.00022005,2]
[315178853,1708906232082,-500.0,0.00022005,2]
[315178854,1708906232091,-196.04328468,0.00022005,2]
[315178855,1708906232100,-500.0,0.00022005,2]
[315178856,1708906232109,-388.1,0.00022005,2]
[315178857,1708906232118,-500.0,0.00022005,2]
[315178859,1708906232131,-500.0,0.00022005,2]
[315178860,1708906232139,-500.0,0.00022005,2]
[315178861,1708906232148,-500.0,0.00022005,2]
[315178862,1708906232158,-500.0,0.00022005,2]
[315178863,1708906232170,-500.0,0.00022005,2]
[315178864,1708906232179,-500.0,0.00022005,2]
[315178865,1708906232189,-500.0,0.00022005,2]
[315178866,1708906232200,-500.0,0.00022005,2]
[315178867,1708906232211,-500.0,0.00022005,2]
[315178868,1708906232220,-500.0,0.00022005,2]
[315178869,1708906232230,-500.0,0.00022005,2]
[315178870,1708906232239,-500.0,0.00022005,2]
[315178871,1708906232248,-262.10023935,0.00022005,2]
[315178872,1708906232258,-500.0,0.00022005,2]
[315178873,1708906232267,-483.82935222,0.00022005,2]
[315178874,1708906232277,-500.0,0.00022005,2]
[315178875,1708906232288,-500.0,0.00022005,2]
[315178876,1708906232297,-500.0,0.00022005,2]
[315178877,1708906232306,-557.88,0.00022005,2]
[315178878,1708906232315,-500.0,0.00022005,2]
[315178879,1708906232325,-500.0,0.00022005,2]
[315178880,1708906232334,-643.36,0.00022005,2]
[315178881,1708906232344,-500.0,0.00022005,2]
[315178882,1708906232354,-308.5263883,0.00022005,2]
[315178883,1708906232362,-500.0,0.00022005,2]
[315178884,1708906232372,-500.0,0.00022005,2]
[315178885,1708906232381,-500.0,0.00022005,2]
[315178886,1708906232390,-397.45,0.00022005,2]
[315178887,1708906232399,-500.0,0.00022005,2]
[315178888,1708906232408,-500.0,0.00022005,2]
[315178889,1708906232417,-500.0,0.00022005,2]
[315178890,1708906232426,-287.7,0.00022005,2]
[315178891,1708906232435,-500.0,0.00022005,2]
[315178892,1708906232444,-500.0,0.00022005,2]
[315178893,1708906232454,-500.0,0.00022005,2]
[315178894,1708906232463,-500.0,0.00022005,2]
[315178895,1708906232472,-500.0,0.00022005,2]
[315178896,1708906232481,-500.0,0.00022005,2]
[315178897,1708906232490,-500.0,0.00022005,2]
[315178898,1708906232500,-54753.2425901,0.00022006,2]
[315178899,1708906232509,-54753.2425901,0.00022006,2]
[315178900,1708906232519,-54753.2425901,0.00022006,2]
[315178901,1708906232528,-54753.2425901,0.00022006,2]
[315178902,1708906232538,-54753.2425901,0.00022006,2]
[315178903,1708906232547,-54753.2425901,0.00022006,2]
[315178904,1708906232557,-165.46,0.00022007,2]
[315178905,1708906232566,-160.38,0.00022037,2]
[315178906,1708906232575,-160.38,0.00022128,2]
[315178907,1708906232584,-150.0,0.00022135,2]
[315178908,1708906232593,-153.93,0.00022137,2]
[315178909,1708906232603,-499.0,0.0002214,2]
[315178910,1708906232612,-151.68,0.00022192,2]
[315178911,1708906232621,-160.38,0.0002222,2]
[315178912,1708906232630,-232.23,0.00022239,2]
[315178913,1708906232640,-153.93,0.00022356,2]
[315178914,1708906232649,-499.0,0.000224,2]
[315178915,1708906232658,-151.68,0.00022466,2]
[315178916,1708906232667,-192.46755915,0.000225,2]
[315178917,1708906232676,-153.93,0.00022575,2]
[315178918,1708906232685,-1722.33,0.00022648,2]
[315178919,1708906232694,-499.0,0.0002265,2]
[315178920,1708906232703,-1048.1,0.00022654,2]
[315178921,1708906232712,-172.67273251,0.00022691,2]
[315178922,1708906232722,-205.0,0.00022713,5]
[315178923,1708906232731,-150.0,0.00022726,2]
[315178924,1708906232740,-150.0,0.00022729,2]
[315178925,1708906232750,-1500.0,0.00022736,2]
[315178926,1708906232759,-1500.0,0.00022736,2]
[315178927,1708906232768,-150.0,0.00022739,2]
[315178928,1708906232777,-151.68,0.0002274,2]
[315178929,1708906232785,-150.0,0.00022742,2]
[315178930,1708906232798,-2250.0,0.0002276,2]
[315178931,1708906232807,-1500.0,0.00022761,2]
[315178932,1708906232816,-150.0,0.00022768,2]
[315178933,1708906232825,-150.0,0.00022776,2]
[315178934,1708906232834,-150.0,0.00022786,2]
[315178935,1708906232843,-153.93,0.00022795,2]
[315178936,1708906232853,-150.0,0.00022797,2]
[315178937,1708906232862,-150.0,0.00022799,2]
[315178938,1708906232871,-150.0,0.00022799,2]
[315178939,1708906232880,-175.1144165,0.000228,2]
[315178940,1708906232889,-150.0,0.00022803,2]
[315178941,1708906232898,-150.0,0.00022808,2]
[315178942,1708906232907,-150.0,0.00022809,2]
[315178943,1708906232917,-2372.5542,0.00022809,2]
[315178944,1708906232926,-2925.2538,0.00022809,2]
[315178945,1708906232939,-11176.0988,0.00022809,2]
[315178946,1708906232949,-15584.8972,0.00022809,2]
[315178947,1708906232958,-150.0,0.0002281,2]
[315178948,1708906232967,-150.0,0.00022811,2]
[315178949,1708906232977,-150.0,0.00022812,2]
[315178950,1708906232986,-800.0,0.00022816,2]
[315178951,1708906232996,-150.0,0.00022824,2]
[315178952,1708906233005,-150.0,0.00022831,2]
[315178953,1708906233014,-150.0,0.00022831,2]
[315178954,1708906233023,-150.0,0.00022836,2]
[315178955,1708906233032,-1500.0,0.0002284,2]
[315178956,1708906233043,-150.0,0.00022846,2]
[315178957,1708906233052,-150.0,0.0002285,2]
[315178958,1708906233061,-150.0,0.0002285,2]
[315178959,1708906233070,-150.0,0.00022852,2]
[315178960,1708906233079,-150.0,0.00022854,2]
[315178961,1708906233088,-150.0,0.00022858,2]
[315178962,1708906233096,-150.0,0.0002286,2]
[315178963,1708906233105,-150.0,0.00022861,2]
[315178964,1708906233114,-1500.0,0.00022863,2]
[315178965,1708906233126,-150.0,0.00022864,2]
[315178966,1708906233135,-1756.48494136,0.00022875,2]
[315178967,1708906233144,-150.0,0.00022879,2]
[315178968,1708906233153,-1500.0,0.00022879,2]
[315178969,1708906233163,-1911.1821,0.00022884,2]
[315178970,1708906233172,-3196.19277888,0.00022884,2]
[315178971,1708906233181,-186.94888867,0.00022884,2]
[315178972,1708906233189,-635.82027004,0.00022884,2]
[315178973,1708906233201,-5000.0,0.00022884,2]
[315178974,1708906233212,-635.82027003,0.00022885,2]
[315178975,1708906233221,-3196.19277879,0.00022885,2]
[315178976,1708906233230,-635.82027003,0.00022886,2]
[315178977,1708906233239,-3196.19277879,0.00022887,2]
[315178978,1708906233248,-150.0,0.00022887,2]
[315178979,1708906233257,-288.26818169,0.00022887,2]
[315178980,1708906233265,-635.82027003,0.00022887,2]
[315178981,1708906233274,-3196.19277879,0.00022888,2]
[315178982,1708906233283,-635.82027003,0.00022889,2]
[315178983,1708906233295,-635.82027003,0.0002289,2]
[315178984,1708906233305,-3196.19277879,0.0002289,2]
[315178985,1708906233315,-635.82027003,0.00022891,2]
[315178986,1708906233324,-1500.0,0.00022891,2]
[315178987,1708906233333,-3196.19277879,0.00022891,2]
[315178988,1708906233343,-190.4007667,0.00022892,2]
[315178989,1708906233352,-635.82027003,0.00022892,2]
[315178990,1708906233364,-3196.19277879,0.00022893,2]
[315178991,1708906233373,-635.82027003,0.00022893,2]
[315178992,1708906233383,-3196.19277879,0.00022894,2]
[315178993,1708906233392,-635.82027003,0.00022894,2]
[315178994,1708906233401,-635.82027003,0.00022895,2]
[315178995,1708906233410,-3196.19277879,0.00022896,2]
[315178996,1708906233419,-635.82027003,0.00022897,2]
[315178997,1708906233428,-3196.19277879,0.00022897,2]
[315178998,1708906233437,-635.82027003,0.00022898,2]
[315178999,1708906233446,-3196.19277879,0.00022899,2]
[315179000,1708906233455,-635.82027003,0.00022899,2]
[315179001,1708906233464,-458.40136173,0.00022899,2]
[315179002,1708906233473,-202.48576347,0.00022899,2]
[315179003,1708906233481,-343.53429422,0.00022899,2]
[315179004,1708906233491,-458.40136171,0.000229,2]
[315179005,1708906233500,-202.48576346,0.000229,2]
[315179006,1708906233509,-343.53429421,0.000229,2]
[315179007,1708906233518,-3702.70253068,0.000229,3]
[315179008,1708906233527,-843.26061791,0.000229,5]
[315179009,1708906233538,-8958.15304041,0.000229,2]
[315179010,1708906233547,-2000.0,0.000229,2]
[315179011,1708906233556,-200.0,0.000229,2]
[315179012,1708906233566,-3196.19277879,0.000229,2]
[315179013,1708906233575,-458.40136171,0.000229,2]
[315179014,1708906233584,-635.82027003,0.000229,2]
[315179015,1708906233593,-202.48576346,0.000229,2]
[315179016,1708906233603,-343.53429421,0.000229,2]
[315179017,1708906233612,-150.0,0.00022902,2]
[315179018,1708906233621,-150.0,0.00022903,2]
[315179019,1708906233630,-499.0,0.0002291,2]
[315179020,1708906233640,-1500.0,0.00022919,2]
[315179021,1708906233649,-150.0,0.00022938,2]
[315179022,1708906233659,-150.0,0.00022946,2]
[315179023,1708906233668,-1500.0,0.00022951,2]
[315179024,1708906233677,-150.0,0.00022954,2]
[315179025,1708906233686,-156.12,0.00022956,2]
[315179026,1708906233695,-150.0,0.00022957,2]
[315179027,1708906233704,-150.0,0.00022958,2]
[315179028,1708906233714,-800.0,0.00022959,2]
[315179029,1708906233723,-150.0,0.00022959,2]
[315179030,1708906233732,-150.0,0.00022959,2]
[315179031,1708906233742,-150.0,0.00022965,2]
[315179032,1708906233751,-150.0,0.00022966,2]
[315179033,1708906233760,-150.0,0.00022966,2]
[315179034,1708906233769,-150.0,0.00022968,2]
[315179035,1708906233779,-626.6768993,0.00022971,2]
[315179036,1708906233788,-150.0,0.00022974,2]
[315179037,1708906233798,-1756.48494136,0.00022976,2]
[315179038,1708906233807,-150.0,0.0002298,2]
[315179039,1708906233816,-500.0,0.00022982,2]
[315179040,1708906233826,-500.0,0.00022982,2]
[315179041,1708906233835,-500.0,0.00022982,2]
[315179042,1708906233844,-500.0,0.00022982,2]
[315179043,1708906233854,-500.0,0.00022982,2]
[315179044,1708906233863,-500.0,0.00022982,2]
[315179045,1708906233872,-500.0,0.00022982,2]
[315179046,1708906233881,-190.4007667,0.00022983,2]
[315179047,1708906233890,-500.0,0.00022983,2]
[315179048,1708906233899,-578.15671709,0.00022983,2]
[315179049,1708906233908,-269.7991483,0.00022983,2]
[315179050,1708906233917,-500.0,0.00022983,2]
[315179051,1708906233926,-500.0,0.00022983,2]
[315179052,1708906233935,-500.0,0.00022983,2]
[315179053,1708906233944,-500.0,0.00022983,2]
[315179054,1708906233953,-154.41,0.00022983,2]
[315179055,1708906233962,-217.61877655,0.00022983,2]
[315179056,1708906233971,-182.05295812,0.00022983,2]
[315179057,1708906233979,-500.0,0.00022983,2]
[315179058,1708906233988,-322.5669984,0.00022983,2]
[315179059,1708906233997,-500.0,0.00022983,2]
[315179060,1708906234006,-500.0,0.00022983,2]
[315179061,1708906234015,-500.0,0.00022983,2]
[315179062,1708906234024,-500.0,0.00022983,2]
[315179063,1708906234034,-500.0,0.00022983,2]
[315179064,1708906234044,-247.58872568,0.00022983,2]
[315179065,1708906234053,-347.0988352,0.00022983,2]
[315179066,1708906234062,-500.0,0.00022983,2]
[315179067,1708906234071,-500.0,0.00022983,2]
[315179068,1708906234080,-500.0,0.00022983,2]
[315179069,1708906234089,-500.0,0.00022983,2]
[315179070,1708906234099,-500.0,0.00022983,2]
[315179071,1708906234108,-553.44511269,0.00022983,2]
[315179072,1708906234117,-566.66,0.00022983,2]
[315179073,1708906234130,-500.0,0.00022983,2]
[315179074,1708906234139,-500.0,0.00022983,2]
[315179075,1708906234148,-500.0,0.00022983,2]
[315179076,1708906234156,-500.0,0.00022983,2]
[315179077,1708906234167,-479.79203223,0.00022983,2]
[315179078,1708906234176,-500.0,0.00022983,2]
[315179079,1708906234185,-500.0,0.00022983,2]
[315179080,1708906234195,-500.0,0.00022983,2]
[315179081,1708906234205,-638.21695644,0.00022983,2]
[315179082,1708906234215,-500.0,0.00022983,2]
[315179083,1708906234224,-500.0,0.00022983,2]
[315179084,1708906234233,-227.47740749,0.00022983,2]
[315179085,1708906234242,-500.0,0.00022983,2]
[315179086,1708906234251,-500.0,0.00022983,2]
[315179087,1708906234260,-500.0,0.00022983,2]
[315179088,1708906234271,-2123.57959296,0.00022984,2]
[315179089,1708906234282,-153050.1610194,0.00022984,2]
[315179090,1708906234292,-98300.95034491,0.00022984,2]
[315179091,1708906234692,-81325.02768329,0.00022984,2]
[315179092,1708906234702,-117214.60995498,0.00022984,2]
[315179093,1708906234713,-1552.38286785,0.00022984,2]
[315179094,1708906234725,-471.07573653,0.00022984,2]
[315179095,1708906234736,-578.8885869,0.00022984,2]
[315179097,1708906239272,-500.0,0.00022983,2]
[315179098,1708906239282,-170.73103445,0.00022983,2]
[315179099,1708906239295,-329.26896555,0.00022983,2]
[315179100,1708906239306,-1194.30281486,0.00022984,4]
[315179101,1708906239318,-558.468,0.00022984,4]
[315179102,1708906239335,-751.41281411,0.00022984,4]
[315179103,1708906239346,-741.27723955,0.00022984,4]
[315179104,1708906239359,-420.8888349,0.00022984,4]
[315179105,1708906239371,-313.89851893,0.00022984,4]
[315179106,1708906239393,-4598.99509349,0.00022984,4]
[315179107,1708906239405,-10605.95277791,0.00022984,4]
[315179108,1708906239448,-731.56349054,0.00022984,4]
[315179109,1708906239460,-13646.04511108,0.00022984,4]
[315179185,1708906240180,-355.72425126,0.00022984,4]
[315179187,1708906240192,-215989.06245893,0.00022984,4]
[315179189,1708906240202,-86384.83789064,0.00022984,2]
[315179192,1708906240214,-232777.6120456,0.00022984,2]
[315179194,1708906240223,-190.4007667,0.00022984,2]
[315179196,1708906240233,-190.4007667,0.00022984,2]
[315179198,1708906240242,-190.4007667,0.00022984,2]
[315179200,1708906240252,-38316.0,0.00022985,2]
[315179202,1708906240261,-150.0,0.00022985,2]
[315179204,1708906240269,-150.0,0.00022985,2]
[315179206,1708906240278,-113531.0,0.00022986,2]
[315179208,1708906240287,-150.0,0.00022989,2]
[315179210,1708906240298,-300.0,0.0002299,2]
[315179212,1708906240307,-1756.48494136,0.0002299,2]
[315179214,1708906240316,-150.0,0.00022996,2]
[315179216,1708906240325,-1212.43659335,0.00022998,2]
[315179218,1708906240334,-155.30357646,0.00022998,2]
[315179220,1708906240343,-155.0,0.00022998,2]
[315179222,1708906240352,-155.0,0.00022998,2]
[315179224,1708906240361,-10098.10196273,0.00022998,2]
[315179226,1708906240370,-4171.05022636,0.00022998,2]
[315179228,1708906240379,-155.0,0.00022998,2]
[315179230,1708906240388,-8025.864084,0.00022998,2]
[315179232,1708906240397,-500.0,0.00022998,2]
[315179234,1708906240405,-500.0,0.00022998,2]
[315179236,1708906240414,-39849.7,0.00022998,2]
[315179238,1708906240423,-41443.14,0.00022999,2]
[315179240,1708906240432,-154383.1396746,0.00022999,2]
[315179242,1708906240441,-16293.96241936,0.00022999,2]
[315179244,1708906240450,-368.7179,0.00022999,2]
[315179246,1708906240459,-647.2772801,0.00022999,2]
[315179248,1708906240468,-1000.0,0.00022999,2]
[315179250,1708906240477,-500.0,0.00022999,2]
[315179252,1708906240485,-492.5530497,0.00022999,2]
[315179254,1708906240494,-63591.17213484,0.00023,2]
[315179256,1708906240511,-87118.32547962,0.00023,2]
[315179476,1708906242522,-5425.4639,0.00023,2]
[315179832,1708906245729,-262.27282515,0.00022999,2]
[315179851,1708906440530,215.6394,0.00023,7]
[315179852,1708906478353,33612.8216,0.00019661,2]
[315179853,1708906613454,212.5503081,0.00023,7]
[315179854,1708906645866,-150.0,0.0001976,2]
[315179855,1708906646414,-150.0,0.0001976,2]
[315179856,1708906647001,-150.0,0.0001976,2]
[315179857,1708906647165,-150.0,0.0001976,2]
[315179858,1708906647232,-150.0,0.0001976,2]
[315179859,1708906648794,-150.0,0.0001976,2]
[315179860,1708906649607,-150.0,0.0001976,2]
[315179861,1708906650756,-150.0,0.0001976,2]
[315179862,1708906651282,-150.0,0.0001976,2]
[315179864,1708906741629,16739.2763,0.0001966,2]
[315179865,1708906742988,-150.0,0.0001976,2]
[315179866,1708906744438,-245.40899977,0.0001976,2]
[315179867,1708906745098,-164.38,0.0001976,2]
[315179868,1708906745892,-150.0,0.0001976,2]
[315179869,1708906750941,-96.64911304,0.0001976,2]
[315179870,1708906756115,-177.38992792,0.00019761,2]
[315179871,1708906758258,-150.0,0.00019761,2]
[315179872,1708906821656,151.0,0.00026469,120]
[315179874,1708906885177,719.65,0.0001869,2]
[315179875,1708906949909,-1022.61007208,0.00019761,2]
[315179876,1708906949936,-300.0,0.00020596,2]
[315179877,1708906949963,-1148.22,0.00020919,2]
[315179878,1708906949991,-719.65,0.00020954,2]
[315179879,1708906950017,-1000.0,0.00021,2]
[315179880,1708906950044,-381.62,0.00021059,2]
[315179881,1708906950070,-381.62,0.00021117,2]
[315179882,1708906950107,-381.62,0.00021175,2]
[315179883,1708906950137,-29487.50632121,0.00021229,2]
[315179884,1708906950165,-177.15360671,0.0002123,2]
[315179885,1708907050676,5000.0,0.00023002,7]
[315179889,1708907392915,300.0,0.00018456,2]
[315179890,1708907392939,347.68,0.00018456,2]
[315179918,1708907431949,-371.57357286,0.0002072,2]
[315179919,1708907431962,-276.10642714,0.0002072,2]
[315179920,1708907431972,-297.83,0.00020737,2]
[315179921,1708907431981,-172.48235654,0.00020748,2]
[315179922,1708907431993,-784.36764346,0.00020748,2]
[315179923,1708907432004,-324.37,0.00020761,2]
[315179924,1708907432013,-180.1,0.00020762,2]
[315179925,1708907432022,-91.60262648,0.00020818,2]
[315179929,1708907432055,-232.76737352,0.00020818,2]
[315179931,1708907432063,-23.03366225,0.00020875,2]
[315179932,1708907432084,-301.33633775,0.00020875,2]
[315179933,1708907432093,-324.37,0.00020932,2]
[315179934,1708907432103,-324.37,0.00020989,2]
[315179935,1708907432113,-324.37,0.00021046,2]
[315179936,1708907432122,-150.0,0.00021101,2]
[315179937,1708907432131,-14099.24302183,0.00021101,2]
[315179938,1708907432150,-14300.96975607,0.00021101,2]
[315179940,1708907432169,-1017.36783253,0.00021101,2]
[315179941,1708907432197,-69.92571078,0.00021101,2]
[315179942,1708907432206,-324.37,0.00021102,2]
[315179943,1708907432215,-153.1117655,0.00021102,2]
[315179945,1708907437726,-1202.67,0.00021102,2]
[315179946,1708907437738,-310.3782345,0.00021102,2]
[315179947,1708907437747,-3000.0,0.00021102,2]
[315179948,1708907437756,-324.37,0.00021159,2]
[315179949,1708907437765,-153.53957034,0.0002119,2]
[315179950,1708907437774,-324.37,0.00021216,2]
[315179951,1708907437784,-560.44639329,0.0002123,2]
[315179952,1708907437793,-553.63,0.00021233,2]
[315179953,1708907437802,-1009.64,0.00021233,2]
[315179954,1708907437812,-324.37,0.00021273,2]
[315179955,1708907437821,-324.37,0.0002133,2]
[315179956,1708907437830,-11444.89429289,0.00021335,2]
[315179957,1708907437839,-3577.0,0.00021345,2]
[315179958,1708907437849,-499.99,0.00021348,2]
[315179959,1708907437859,-179.21,0.00021348,2]
[315179960,1708907437869,-680.76,0.00021348,2]
[315179961,1708907437878,-153.53957034,0.00021361,2]
[315179962,1708907437887,-324.37,0.00021387,2]
[315179963,1708907437896,-324.37,0.00021444,2]
[315179964,1708907437906,-324.37,0.00021501,2]
[315179965,1708907437915,-2500.0,0.00021506,2]
[315179966,1708907437925,-16968.7552,0.00021506,2]
[315179967,1708907437934,-153.53957034,0.00021532,2]
[315179968,1708907437943,-324.37,0.00021558,2]
[315179969,1708907437952,-8985.46,0.00021604,2]
[315179970,1708907437962,-518.95,0.00021606,2]
[315179972,1708907437971,-15467.517,0.00021606,2]
[315179973,1708907437980,-739.0699,0.00021606,2]
[315179974,1708907437989,-2339.4598,0.00021606,2]
[315179975,1708907437998,-155242.3396,0.00021606,2]
[315179976,1708907438008,-5280.19,0.00021606,2]
[315179977,1708907438017,-2766.27640022,0.00021606,2]
[315179978,1708907438026,-324.37,0.00021615,2]
[315179980,1708907438035,-324.37,0.00021672,2]
[315179982,1708907438044,-221.99073488,0.00021696,2]
[315179984,1708907438053,-153.53957034,0.00021703,2]
[315179986,1708907438062,-44472.62765936,0.00021705,2]
[315179988,1708907438072,-1000.0,0.00021706,2]
[315179990,1708907438081,-584809.3042,0.00021706,2]
[315179992,1708907438090,-334.031,0.00021706,2]
[315179994,1708907438101,-955.3121,0.00021706,2]
[315179996,1708907438109,-1337.02890907,0.00021706,2]
[315179998,1708907438118,-324.37,0.00021729,2]
[315180000,1708907438127,-324.37,0.00021786,2]
[315180002,1708907438136,-193.86263835,0.00021805,2]
[315180004,1708907438145,-12654.6111,0.00021806,2]
[315180006,1708907438154,-2529.717,0.00021806,2]
[315180008,1708907438163,-100000.0,0.00021806,2]
[315180010,1708907438172,-29843.3427,0.00021806,2]
[315180012,1708907438181,-244.24766075,0.00021806,2]
[315180014,1708907438190,-324.37,0.00021843,2]
[315180016,1708907438199,-153.53957034,0.00021874,2]
[315180018,1708907438208,-1337.02890901,0.00021884,2]
[315180020,1708907438217,-2766.27640019,0.00021899,2]
[315180022,1708907438226,-750.0,0.000219,2]
[315180024,1708907438236,-193.86263835,0.00021904,2]
[315180026,1708907438244,-193.86263835,0.00021904,2]
[315180028,1708907438253,-245000.0,0.00021905,2]
[315180030,1708907438262,-500.0,0.00021917,2]
[315180032,1708907438271,-296.72,0.00021917,2]
[315180034,1708907438280,-500.0,0.00021917,2]
[315180036,1708907438289,-500.0,0.00021917,2]
[315180038,1708907438298,-500.0,0.00021917,2]
[315180040,1708907438307,-500.0,0.00021917,2]
[315180042,1708907438316,-500.0,0.00021917,2]
[315180044,1708907438325,-500.0,0.00021917,2]
[315180046,1708907438334,-500.0,0.00021917,2]
[315180048,1708907438343,-500.0,0.00021917,2]
[315180050,1708907438352,-500.0,0.00021917,2]
[315180052,1708907438360,-500.0,0.00021917,2]
[315180054,1708907438369,-500.0,0.00021917,2]
[315180056,1708907438378,-576.20462493,0.00021917,2]
[315180058,1708907438387,-500.0,0.00021917,2]
[315180060,1708907438396,-500.0,0.00021917,2]
[315180062,1708907438405,-502.56899091,0.00021917,2]
[315180064,1708907438414,-500.0,0.00021917,2]
[315180066,1708907438422,-500.0,0.00021917,2]
[315180068,1708907438431,-336.94,0.00021918,2]
[315180070,1708907438439,-1000.0,0.00022,2]
[315180072,1708907438449,-1000.0,0.00022,2]
[315180074,1708907438458,-697.36954593,0.00022,2]
[315180076,1708907438466,-500.0,0.00022,2]
[315180078,1708907438476,-500.0,0.00022,2]
[315180080,1708907438485,-279.28652875,0.00022,2]
[315180082,1708907438494,-20312.4791079,0.00022,2]
[315180084,1708907438504,-20312.46587581,0.00022,2]
[315180086,1708907438514,-150.0,0.00022,2]
[315180088,1708907438523,-150.0,0.00022,2]
[315180089,1708907438533,-20171.7869329,0.00022,2]
[315180090,1708907438542,-20171.72781387,0.00022,2]